fUSD/lending_fUSD_20250530
["ID","MTS","AMOUNT","RATE_DAILY","PERIOD"]
[363199944,1748621451562,-420.0,0.00022465,2]
[363199945,1748621451571,-465.97,0.00022465,2]
[363199946,1748621451580,-420.0,0.00022465,2]
[363199947,1748621451589,-420.0,0.00022465,2]
[363199948,1748621451599,-420.0,0.00022465,2]
[363199949,1748621451608,-420.0,0.00022465,2]
[363199950,1748621451618,-420.0,0.00022465,2]
[363199951,1748621451627,-420.0,0.00022465,2]
[363199952,1748621451636,-420.0,0.00022465,2]
[363199953,1748621451645,-420.0,0.00022465,2]
[363199954,1748621451654,-420.0,0.00022465,2]
[363199955,1748621451663,-420.0,0.00022465,2]
[363199956,1748621451676,-420.0,0.00022465,2]
[363199957,1748621451686,-420.0,0.00022465,2]
[363199958,1748621451695,-420.0,0.00022465,2]
[363199959,1748621451704,-420.0,0.00022465,2]
[363199960,1748621451714,-420.0,0.00022465,2]
[363199961,1748621451723,-420.0,0.00022465,2]
[363199962,1748621451733,-420.0,0.00022465,2]
[363199963,1748621451742,-479.58,0.00022465,2]
[363199964,1748621451751,-420.0,0.00022465,2]
[363199965,1748621451761,-420.0,0.00022465,2]
[363199966,1748621451770,-420.0,0.00022465,2]
[363199967,1748621451780,-420.0,0.00022465,2]
[363199968,1748621451789,-420.0,0.00022465,2]
[363199969,1748621451798,-939.99,0.00022465,2]
[363199970,1748621451807,-420.0,0.00022465,2]
[363199971,1748621451816,-420.0,0.00022465,2]
[363199972,1748621451825,-420.0,0.00022465,2]
[363199973,1748621451834,-420.0,0.00022465,2]
[363199974,1748621451843,-420.0,0.00022465,2]
[363199975,1748621451853,-501.62,0.00022465,2]
[363199976,1748621451862,-420.0,0.00022465,2]
[363199977,1748621451871,-420.0,0.00022465,2]
[363199978,1748621451881,-420.0,0.00022465,2]
[363199979,1748621451890,-420.0,0.00022465,2]
[363199980,1748621451899,-471.1,0.00022465,2]
[363199981,1748621451908,-420.0,0.00022465,2]
[363199982,1748621451917,-420.0,0.00022465,2]
[363199983,1748621451927,-420.0,0.00022465,2]
[363199984,1748621451936,-420.0,0.00022465,2]
[363199985,1748621451945,-420.0,0.00022465,2]
[363199986,1748621451954,-420.0,0.00022465,2]
[363199987,1748621451963,-420.0,0.00022465,2]
[363199988,1748621451973,-420.0,0.00022465,2]
[363199989,1748621451982,-420.0,0.00022465,2]
[363199990,1748621451991,-493.78,0.00022465,2]
[363199991,1748621452001,-420.0,0.00022465,2]
[363199992,1748621452010,-442.33,0.00022465,2]
[363199993,1748621452020,-420.0,0.00022465,2]
[363199994,1748621452029,-420.0,0.00022465,2]
[363199995,1748621452039,-420.0,0.00022465,2]
[363199996,1748621452048,-348.63042864,0.00022465,2]
[363199997,1748621452058,-654.87,0.00022465,2]
[363199998,1748621452067,-420.0,0.00022465,2]
[363199999,1748621452076,-420.0,0.00022465,2]
[363200000,1748621452086,-420.0,0.00022465,2]
[363200001,1748621452095,-420.0,0.00022465,2]
[363200002,1748621452104,-420.0,0.00022465,2]
[363200003,1748621452114,-618.64,0.00022465,2]
[363200004,1748621452124,-420.0,0.00022465,2]
[363200005,1748621452133,-420.0,0.00022465,2]
[363200006,1748621452144,-420.0,0.00022465,2]
[363200007,1748621452154,-665.03,0.00022465,2]
[363200008,1748621452164,-420.0,0.00022465,2]
[363200009,1748621452173,-420.0,0.00022465,2]
[363200010,1748621452183,-556.67,0.00022465,2]
[363200011,1748621452192,-420.0,0.00022465,2]
[363200012,1748621452202,-420.0,0.00022465,2]
[363200013,1748621452211,-420.0,0.00022465,2]
[363200014,1748621452220,-420.0,0.00022465,2]
[363200015,1748621452229,-420.0,0.00022465,2]
[363200016,1748621452239,-420.0,0.00022465,2]
[363200017,1748621452249,-420.0,0.00022465,2]
[363200018,1748621452259,-420.0,0.00022465,2]
[363200019,1748621452269,-420.0,0.00022465,2]
[363200020,1748621452278,-518.65,0.00022465,2]
[363200021,1748621452288,-420.0,0.00022465,2]
[363200022,1748621452298,-527.91,0.00022465,2]
[363200023,1748621452308,-994.08,0.00022465,2]
[363200024,1748621452319,-832.68,0.00022465,2]
[363200025,1748621452330,-420.0,0.00022465,2]
[363200026,1748621452340,-395.48756011,0.00022465,2]
[363200027,1748621452350,-420.0,0.00022465,2]
[363200028,1748621452360,-420.0,0.00022465,2]
[363200029,1748621452370,-420.0,0.00022465,2]
[363200030,1748621452380,-420.0,0.00022465,2]
[363200031,1748621452389,-420.0,0.00022465,2]
[363200032,1748621452398,-502.62,0.00022465,2]
[363200033,1748621452407,-420.0,0.00022465,2]
[363200034,1748621452416,-420.0,0.00022465,2]
[363200035,1748621452427,-769.55,0.00022465,2]
[363200036,1748621452438,-420.0,0.00022465,2]
[363200037,1748621452447,-565.59,0.00022465,2]
[363200038,1748621452458,-420.0,0.00022465,2]
[363200039,1748621452467,-420.0,0.00022465,2]
[363200040,1748621452476,-420.0,0.00022465,2]
[363200041,1748621452486,-420.0,0.00022465,2]
[363200042,1748621452495,-438.16769462,0.00022465,2]
[363200043,1748621452504,-250.0,0.00022465,2]
[363200044,1748621452513,-454.46,0.00022465,2]
[363200045,1748621452522,-420.0,0.00022465,2]
[363200046,1748621452531,-420.0,0.00022465,2]
[363200047,1748621452542,-420.0,0.00022465,2]
[363200048,1748621452551,-420.0,0.00022465,2]
[363200049,1748621452560,-420.0,0.00022465,2]
[363200050,1748621452571,-420.0,0.00022465,2]
[363200051,1748621452580,-420.0,0.00022465,2]
[363200052,1748621452591,-591.9,0.00022465,2]
[363200053,1748621452601,-420.0,0.00022465,2]
[363200054,1748621452611,-420.0,0.00022465,2]
[363200055,1748621452623,-420.0,0.00022465,2]
[363200056,1748621452633,-482.59,0.00022465,2]
[363200057,1748621452644,-1552.41,0.00022465,2]
[363200058,1748621452653,-420.0,0.00022465,2]
[363200059,1748621452664,-420.0,0.00022465,2]
[363200060,1748621452678,-420.0,0.00022465,2]
[363200061,1748621452687,-420.0,0.00022465,2]
[363200062,1748621452697,-663.63,0.00022465,2]
[363200063,1748621452706,-420.0,0.00022465,2]
[363200064,1748621452718,-470.25166582,0.00022465,2]
[363200065,1748621452728,-420.0,0.00022465,2]
[363200066,1748621452738,-456.47,0.00022465,2]
[363200067,1748621452751,-420.0,0.00022465,2]
[363200068,1748621452762,-420.0,0.00022465,2]
[363200069,1748621452771,-563.71,0.00022465,2]
[363200070,1748621452780,-420.0,0.00022465,2]
[363200071,1748621452790,-420.0,0.00022465,2]
[363200072,1748621452800,-565.86,0.00022465,2]
[363200073,1748621452809,-499.67,0.00022465,2]
[363200074,1748621452819,-420.0,0.00022465,2]
[363200075,1748621452828,-420.0,0.00022465,2]
[363200076,1748621452837,-420.0,0.00022465,2]
[363200077,1748621452846,-477.92,0.00022465,2]
[363200078,1748621452855,-420.0,0.00022465,2]
[363200079,1748621452864,-472.21,0.00022465,2]
[363200080,1748621452873,-420.0,0.00022465,2]
[363200081,1748621452882,-712.95,0.00022465,2]
[363200082,1748621452892,-1641.75,0.00022465,2]
[363200083,1748621452902,-420.0,0.00022465,2]
[363200084,1748621452912,-420.0,0.00022465,2]
[363200085,1748621452922,-420.0,0.00022465,2]
[363200086,1748621452932,-420.0,0.00022465,2]
[363200087,1748621452941,-420.0,0.00022465,2]
[363200088,1748621452950,-420.0,0.00022465,2]
[363200089,1748621452960,-420.0,0.00022465,2]
[363200090,1748621452969,-420.0,0.00022465,2]
[363200091,1748621452979,-420.0,0.00022465,2]
[363200092,1748621452988,-714.4,0.00022465,2]
[363200093,1748621452998,-424.32,0.00022465,2]
[363200094,1748621453007,-420.0,0.00022465,2]
[363200095,1748621453017,-420.0,0.00022465,2]
[363200096,1748621453027,-533.52,0.00022465,2]
[363200097,1748621453037,-420.0,0.00022465,2]
[363200098,1748621453046,-420.0,0.00022465,2]
[363200099,1748621453057,-420.0,0.00022465,2]
[363200100,1748621453066,-420.0,0.00022465,2]
[363200101,1748621453075,-420.0,0.00022465,2]
[363200102,1748621453085,-420.0,0.00022465,2]
[363200103,1748621453095,-420.0,0.00022465,2]
[363200104,1748621453103,-558.89,0.00022465,2]
[363200105,1748621453113,-754.53,0.00022465,2]
[363200106,1748621453121,-420.0,0.00022465,2]
[363200107,1748621453131,-420.0,0.00022465,2]
[363200108,1748621453140,-420.0,0.00022465,2]
[363200109,1748621453149,-420.0,0.00022465,2]
[363200110,1748621453159,-420.0,0.00022465,2]
[363200111,1748621453167,-420.0,0.00022465,2]
[363200112,1748621453177,-420.0,0.00022465,2]
[363200113,1748621453186,-420.0,0.00022465,2]
[363200114,1748621453196,-420.0,0.00022465,2]
[363200115,1748621453205,-420.0,0.00022465,2]
[363200116,1748621453215,-420.0,0.00022465,2]
[363200117,1748621453224,-1074.85,0.00022465,2]
[363200118,1748621453233,-420.0,0.00022465,2]
[363200119,1748621453243,-420.0,0.00022465,2]
[363200120,1748621453252,-420.0,0.00022465,2]
[363200121,1748621453262,-420.0,0.00022465,2]
[363200122,1748621453272,-420.0,0.00022465,2]
[363200123,1748621453281,-420.0,0.00022465,2]
[363200124,1748621453292,-522.22,0.00022465,2]
[363200125,1748621453303,-420.0,0.00022465,2]
[363200126,1748621453312,-420.0,0.00022465,2]
[363200127,1748621453322,-420.0,0.00022465,2]
[363200128,1748621453334,-420.0,0.00022465,2]
[363200129,1748621453344,-420.0,0.00022465,2]
[363200130,1748621453355,-403.98911513,0.00022465,2]
[363200131,1748621453365,-420.0,0.00022465,2]
[363200132,1748621453374,-420.0,0.00022465,2]
[363200133,1748621453384,-420.0,0.00022465,2]
[363200134,1748621453393,-420.0,0.00022465,2]
[363200135,1748621453403,-420.0,0.00022465,2]
[363200136,1748621453413,-420.0,0.00022465,2]
[363200137,1748621453422,-1366.25,0.00022465,2]
[363200138,1748621453432,-420.0,0.00022465,2]
[363200139,1748621453441,-420.0,0.00022465,2]
[363200140,1748621453451,-420.0,0.00022465,2]
[363200141,1748621453460,-528.28,0.00022465,2]
[363200142,1748621453469,-420.0,0.00022465,2]
[363200143,1748621453479,-420.0,0.00022465,2]
[363200144,1748621453488,-420.0,0.00022465,2]
[363200145,1748621453497,-420.0,0.00022465,2]
[363200146,1748621453506,-420.0,0.00022465,2]
[363200147,1748621453515,-456.12,0.00022465,2]
[363200148,1748621453524,-420.0,0.00022465,2]
[363200149,1748621453534,-420.0,0.00022465,2]
[363200150,1748621453543,-420.0,0.00022465,2]
[363200151,1748621453552,-420.0,0.00022465,2]
[363200152,1748621453562,-420.0,0.00022465,2]
[363200153,1748621453572,-420.0,0.00022465,2]
[363200154,1748621453581,-420.0,0.00022465,2]
[363200155,1748621453591,-420.0,0.00022465,2]
[363200156,1748621453600,-420.0,0.00022465,2]
[363200157,1748621453610,-420.0,0.00022465,2]
[363200158,1748621453619,-420.0,0.00022465,2]
[363200159,1748621453629,-420.0,0.00022465,2]
[363200160,1748621453638,-420.0,0.00022465,2]
[363200161,1748621453647,-420.0,0.00022465,2]
[363200162,1748621453657,-451.25,0.00022465,2]
[363200163,1748621453667,-669.88,0.00022465,2]
[363200164,1748621453680,-420.0,0.00022465,2]
[363200165,1748621453690,-420.0,0.00022465,2]
[363200166,1748621453699,-633.2,0.00022465,2]
[363200167,1748621453709,-420.0,0.00022465,2]
[363200168,1748621453721,-420.0,0.00022465,2]
[363200169,1748621453730,-420.0,0.00022465,2]
[363200170,1748621453740,-420.0,0.00022465,2]
[363200171,1748621453750,-420.0,0.00022465,2]
[363200172,1748621453760,-420.0,0.00022465,2]
[363200173,1748621453770,-420.0,0.00022465,2]
[363200174,1748621453779,-420.0,0.00022465,2]
[363200175,1748621453788,-420.0,0.00022465,2]
[363200176,1748621453798,-420.0,0.00022465,2]
[363200177,1748621453807,-491.81,0.00022465,2]
[363200178,1748621453817,-420.0,0.00022465,2]
[363200179,1748621453827,-420.0,0.00022465,2]
[363200180,1748621453838,-420.0,0.00022465,2]
[363200181,1748621453848,-984.97,0.00022465,2]
[363200182,1748621453858,-420.0,0.00022465,2]
[363200183,1748621453867,-420.0,0.00022465,2]
[363200184,1748621453876,-561.86,0.00022465,2]
[363200185,1748621453885,-420.0,0.00022465,2]
[363200186,1748621453895,-420.0,0.00022465,2]
[363200187,1748621453904,-646.16,0.00022465,2]
[363200188,1748621453914,-609.7,0.00022465,2]
[363200189,1748621453924,-1453.08,0.00022465,2]
[363200190,1748621453935,-1000.74,0.00022465,2]
[363200191,1748621453945,-420.0,0.00022465,2]
[363200192,1748621453956,-420.0,0.00022465,2]
[363200193,1748621453966,-420.0,0.00022465,2]
[363200194,1748621453976,-420.0,0.00022465,2]
[363200195,1748621453986,-420.0,0.00022465,2]
[363200196,1748621453996,-420.0,0.00022465,2]
[363200197,1748621454006,-420.0,0.00022465,2]
[363200198,1748621454017,-420.0,0.00022465,2]
[363200199,1748621454027,-653.92,0.00022465,2]
[363200200,1748621454038,-584.98,0.00022465,2]
[363200201,1748621454050,-602.51,0.00022465,2]
[363200202,1748621454061,-420.0,0.00022465,2]
[363200203,1748621454071,-420.0,0.00022465,2]
[363200204,1748621454082,-420.0,0.00022465,2]
[363200205,1748621454092,-474.55,0.00022465,2]
[363200206,1748621454103,-611.17,0.00022465,2]
[363200207,1748621454113,-715.72,0.00022465,2]
[363200208,1748621454122,-46503.35,0.00022465,2]
[363200209,1748621454132,-601.37,0.00022465,2]
[363200210,1748621454142,-420.0,0.00022465,2]
[363200211,1748621454152,-420.0,0.00022465,2]
[363200212,1748621454162,-547.8,0.00022465,2]
[363200213,1748621454172,-420.0,0.00022465,2]
[363200214,1748621454183,-420.0,0.00022465,2]
[363200215,1748621454192,-420.0,0.00022465,2]
[363200216,1748621454203,-1585.24,0.00022465,2]
[363200217,1748621454212,-420.0,0.00022465,2]
[363200218,1748621454222,-420.0,0.00022465,2]
[363200219,1748621454232,-420.0,0.00022465,2]
[363200220,1748621454242,-420.0,0.00022465,2]
[363200221,1748621454252,-420.0,0.00022465,2]
[363200222,1748621454262,-477.09,0.00022465,2]
[363200223,1748621454272,-824.32,0.00022465,2]
[363200224,1748621454282,-420.0,0.00022465,2]
[363200225,1748621454295,-448.1,0.00022465,2]
[363200226,1748621454305,-420.0,0.00022465,2]
[363200227,1748621454315,-535.78,0.00022465,2]
[363200228,1748621454325,-674.1,0.00022465,2]
[363200229,1748621454335,-660.41,0.00022465,2]
[363200230,1748621454345,-521.11,0.00022465,2]
[363200231,1748621454355,-420.0,0.00022465,2]
[363200232,1748621454365,-586.5,0.00022465,2]
[363200233,1748621454374,-486.66,0.00022465,2]
[363200234,1748621454384,-420.0,0.00022465,2]
[363200235,1748621454394,-660.07,0.00022465,2]
[363200236,1748621454404,-435.08,0.00022465,2]
[363200237,1748621454414,-607.52,0.00022465,2]
[363200238,1748621454423,-2089.2778515,0.00022465,2]
[363200239,1748621454878,-3340.98238302,0.00022465,2]
[363200240,1748621455081,-420.0,0.00021917,2]
[363200241,1748621455093,-420.0,0.00022191,2]
[363200242,1748621455103,-618.25976548,0.00022465,2]
[363200243,1748621455113,-656.82,0.00022465,2]
[363200244,1748621455123,-988.3,0.00022465,2]
[363200245,1748621455133,-420.0,0.00022465,2]
[363200246,1748621455143,-420.0,0.00022465,2]
[363200247,1748621455153,-420.0,0.00022465,2]
[363200248,1748621455163,-757.13,0.00022465,2]
[363200249,1748621455174,-4088.4,0.00022465,2]
[363200250,1748621455184,-420.0,0.00022465,2]
[363200251,1748621455194,-1445.55,0.00022465,2]
[363200252,1748621455204,-420.0,0.00022465,2]
[363200253,1748621455213,-957.56,0.00022465,2]
[363200254,1748621455223,-1373.18,0.00022465,2]
[363200255,1748621455234,-3058.68,0.00022465,2]
[363200256,1748621455244,-2153.43,0.00022465,2]
[363200257,1748621455254,-420.0,0.00022465,2]
[363200258,1748621455264,-420.0,0.00022465,2]
[363200259,1748621455274,-1240.58,0.00022465,2]
[363200260,1748621455284,-420.0,0.00022465,2]
[363200261,1748621455295,-420.0,0.00022465,2]
[363200262,1748621455305,-457.49,0.00022465,2]
[363200263,1748621455315,-420.0,0.00022465,2]
[363200264,1748621455325,-420.0,0.00022465,2]
[363200265,1748621455335,-420.0,0.00022465,2]
[363200266,1748621455346,-1202.6,0.00022465,2]
[363200267,1748621455356,-1697.84,0.00022465,2]
[363200268,1748621455366,-420.0,0.00022465,2]
[363200269,1748621455376,-420.0,0.00022465,2]
[363200270,1748621455386,-420.0,0.00022465,2]
[363200271,1748621455396,-1453.56,0.00022465,2]
[363200272,1748621455406,-4664.26,0.00022465,2]
[363200273,1748621455416,-420.0,0.00022465,2]
[363200274,1748621455426,-661.23,0.00022465,2]
[363200275,1748621455436,-557.77,0.00022465,2]
[363200276,1748621455447,-539.38,0.00022465,2]
[363200277,1748621455457,-573.95,0.00022465,2]
[363200278,1748621455467,-892.62,0.00022465,2]
[363200279,1748621455478,-421.77,0.00022465,2]
[363200280,1748621455488,-420.0,0.00022465,2]
[363200281,1748621455498,-420.0,0.00022465,2]
[363200282,1748621455508,-420.0,0.00022465,2]
[363200283,1748621455518,-474.82,0.00022465,2]
[363200284,1748621455529,-559.5,0.00022465,2]
[363200285,1748621455539,-420.0,0.00022465,2]
[363200286,1748621455550,-420.0,0.00022465,2]
[363200287,1748621455560,-1026.82,0.00022465,2]
[363200288,1748621455570,-904.65,0.00022465,2]
[363200289,1748621455580,-420.0,0.00022465,2]
[363200290,1748621455589,-478.53,0.00022465,2]
[363200291,1748621455599,-1487.96,0.00022465,2]
[363200292,1748621455609,-420.0,0.00022465,2]
[363200293,1748621455618,-1781.02,0.00022465,2]
[363200294,1748621455627,-465.53,0.00022465,2]
[363200295,1748621455636,-712.19,0.00022465,2]
[363200296,1748621455913,-2725.8,0.00022465,2]
[363200297,1748621455938,-8689.25,0.00022465,2]
[363200298,1748621455949,-158.1996,0.00022465,2]
[363200299,1748621455958,-445.2,0.00022465,2]
[363200300,1748621455969,-420.0,0.00022465,2]
[363200301,1748621455979,-420.0,0.00022465,2]
[363200302,1748621455988,-3605.9,0.00022465,2]
[363200303,1748621455998,-455.83,0.00022465,2]
[363200304,1748621456009,-420.0,0.00022465,2]
[363200305,1748621456018,-420.0,0.00022465,2]
[363200306,1748621456028,-420.96,0.00022465,2]
[363200307,1748621456038,-456.81,0.00022465,2]
[363200308,1748621456048,-420.0,0.00022465,2]
[363200309,1748621456057,-420.0,0.00022465,2]
[363200310,1748621456067,-689.0,0.00022465,2]
[363200311,1748621456077,-4965.11,0.00022465,2]
[363200312,1748621456086,-814.32,0.00022465,2]
[363200313,1748621456096,-420.0,0.00022465,2]
[363200314,1748621456106,-684.53,0.00022465,2]
[363200315,1748621456116,-2825.92,0.00022465,2]
[363200316,1748621456126,-420.0,0.00022465,2]
[363200317,1748621456135,-420.0,0.00022465,2]
[363200318,1748621456145,-1113.68,0.00022465,2]
[363200319,1748621456155,-420.0,0.00022465,2]
[363200320,1748621456165,-490.12,0.00022465,2]
[363200321,1748621456174,-420.0,0.00022465,2]
[363200322,1748621456184,-420.0,0.00022465,2]
[363200323,1748621456196,-985.67,0.00022465,2]
[363200324,1748621456206,-420.0,0.00022465,2]
[363200325,1748621456216,-421.96,0.00022465,2]
[363200326,1748621456227,-420.0,0.00022465,2]
[363200327,1748621456236,-420.0,0.00022465,2]
[363200328,1748621456246,-420.0,0.00022465,2]
[363200329,1748621456255,-790.94,0.00022465,2]
[363200330,1748621456265,-260.64904257,0.00022465,2]
[363200331,1748621456275,-420.0,0.00022465,2]
[363200332,1748621456284,-654.29,0.00022465,2]
[363200333,1748621456294,-1212.39,0.00022465,2]
[363200334,1748621456304,-420.0,0.00022465,2]
[363200335,1748621456313,-669.88,0.00022465,2]
[363200336,1748621456323,-679.73,0.00022465,2]
[363200337,1748621456332,-420.0,0.00022465,2]
[363200338,1748621456342,-1005.75,0.00022465,2]
[363200339,1748621456352,-420.0,0.00022465,2]
[363200340,1748621456361,-421.04,0.00022465,2]
[363200341,1748621456370,-472.22,0.00022465,2]
[363200342,1748621456380,-1292.13,0.00022465,2]
[363200343,1748621456389,-1024.15,0.00022465,2]
[363200344,1748621456398,-598.05,0.00022465,2]
[363200345,1748621456408,-507.86,0.00022465,2]
[363200346,1748621456417,-453.1,0.00022465,2]
[363200347,1748621456427,-420.0,0.00022465,2]
[363200348,1748621456437,-1280.93,0.00022465,2]
[363200349,1748621456447,-420.0,0.00022465,2]
[363200350,1748621456457,-485.5,0.00022465,2]
[363200351,1748621456466,-1383.42,0.00022465,2]
[363200352,1748621456475,-420.0,0.00022465,2]
[363200353,1748621456486,-420.0,0.00022465,2]
[363200354,1748621456495,-420.0,0.00022465,2]
[363200355,1748621456505,-765.35,0.00022465,2]
[363200356,1748621456515,-420.0,0.00022465,2]
[363200357,1748621456525,-420.0,0.00022465,2]
[363200358,1748621456534,-518.37,0.00022465,2]
[363200359,1748621456545,-1656.7,0.00022465,2]
[363200360,1748621456554,-3462.85,0.00022465,2]
[363200361,1748621456564,-1733.26,0.00022465,2]
[363200362,1748621456574,-1766.38,0.00022465,2]
[363200363,1748621456583,-1121.05,0.00022465,2]
[363200364,1748621456593,-779.82,0.00022465,2]
[363200365,1748621456602,-420.0,0.00022465,2]
[363200366,1748621456612,-1733.29,0.00022465,2]
[363200367,1748621456622,-430.54,0.00022465,2]
[363200368,1748621456631,-1057.53,0.00022465,2]
[363200369,1748621456641,-498.86,0.00022465,2]
[363200370,1748621456650,-4651.68,0.00022465,2]
[363200371,1748621456660,-420.0,0.00022465,2]
[363200372,1748621456670,-586.33,0.00022465,2]
[363200373,1748621456685,-883.98,0.00022465,2]
[363200374,1748621456695,-420.0,0.00022465,2]
[363200375,1748621456705,-509.36,0.00022465,2]
[363200376,1748621456714,-420.0,0.00022465,2]
[363200377,1748621456726,-462.09,0.00022465,2]
[363200378,1748621456736,-420.0,0.00022465,2]
[363200379,1748621456747,-1000.0,0.00022465,2]
[363200380,1748621456757,-420.0,0.00022465,2]
[363200381,1748621456767,-429.88,0.00022465,2]
[363200382,1748621456777,-918.5,0.00022465,2]
[363200383,1748621456787,-6943.32,0.00022465,2]
[363200384,1748621456807,-478.33,0.00022465,2]
[363200385,1748621456819,-420.0,0.00022465,2]
[363200386,1748621456830,-1670.99,0.00022465,2]
[363200387,1748621456841,-494.89,0.00022465,2]
[363200388,1748621456852,-420.0,0.00022465,2]
[363200389,1748621456865,-420.0,0.00022465,2]
[363200390,1748621456876,-420.0,0.00022465,2]
[363200391,1748621456886,-481.15,0.00022465,2]
[363200392,1748621456897,-420.0,0.00022465,2]
[363200393,1748621456908,-420.0,0.00022465,2]
[363200394,1748621456919,-420.0,0.00022465,2]
[363200395,1748621456930,-5313.78,0.00022465,2]
[363200396,1748621456941,-423.74,0.00022465,2]
[363200397,1748621456951,-422.14,0.00022465,2]
[363200398,1748621456963,-426.98,0.00022465,2]
[363200399,1748621456973,-641.17,0.00022465,2]
[363200400,1748621456983,-420.0,0.00022465,2]
[363200401,1748621456994,-420.0,0.00022465,2]
[363200402,1748621457004,-420.0,0.00022465,2]
[363200403,1748621457015,-420.0,0.00022465,2]
[363200404,1748621457025,-488.76,0.00022465,2]
[363200405,1748621457035,-236.78189282,0.00022465,2]
[363200406,1748621457049,-759.34,0.00022465,2]
[363200407,1748621457059,-692.95,0.00022465,2]
[363200408,1748621457069,-1159.63,0.00022465,2]
[363200409,1748621457079,-2604.25,0.00022465,2]
[363200410,1748621457089,-420.0,0.00022465,2]
[363200411,1748621457100,-2234.11,0.00022465,2]
[363200412,1748621457110,-342.7,0.00022465,2]
[363200413,1748621457120,-420.0,0.00022465,2]
[363200414,1748621457130,-420.0,0.00022465,2]
[363200415,1748621457140,-2926.35,0.00022465,2]
[363200416,1748621457150,-7394.8,0.00022465,2]
[363200417,1748621457160,-420.0,0.00022465,2]
[363200418,1748621457170,-972.44,0.00022465,2]
[363200419,1748621457182,-420.0,0.00022465,2]
[363200420,1748621457192,-420.0,0.00022465,2]
[363200421,1748621457203,-545.89,0.00022465,2]
[363200422,1748621457213,-1266.42,0.00022465,2]
[363200423,1748621457224,-559.57,0.00022465,2]
[363200424,1748621457234,-1031.04,0.00022465,2]
[363200425,1748621457244,-420.0,0.00022465,2]
[363200426,1748621457254,-17120.95,0.00022465,2]
[363200427,1748621457264,-1111.37,0.00022465,2]
[363200428,1748621457274,-222.56191536,0.00022465,2]
[363200429,1748621457284,-420.0,0.00022465,2]
[363200430,1748621457296,-3692.06123982,0.00022484,2]
[363200431,1748621457306,-1000.0,0.00022521,2]
[363200432,1748621457316,-957.07,0.00022547,2]
[363200433,1748621457326,-2443.1,0.00022547,2]
[363200434,1748621457336,-1682.09,0.00022547,2]
[363200435,1748621457346,-3253.57,0.00022547,2]
[363200436,1748621457355,-3184.32,0.00022547,2]
[363200437,1748621457365,-658.9,0.00022547,2]
[363200438,1748621457374,-4073.28,0.00022547,2]
[363200439,1748621457384,-12023.02,0.00022547,2]
[363200440,1748621457394,-3742.49,0.00022547,2]
[363200441,1748621457404,-561.3,0.00022547,2]
[363200442,1748621457414,-500.37,0.00022556,2]
[363200443,1748621457424,-500.0,0.00022556,2]